Cogmind - Beta 12 --- EXPLORER MODE // 2023.09.27 @ 22:49:04 Player: Olexender Result: Destroyed by G-67 Veteran with Plasma Rifle Performance ------------- Evolutions (7) 3500 Regions Visited (12) 2400 Robots Destroyed (477) 2385 Value Destroyed (21561) 21561 Prototype IDs (27) 540 Alien Tech Used (0) 0 Bonus (1391) 1391 TOTAL SCORE: 31777 Bonus ------- High Alert Combat Kills 854 Follower Combat Kills 37 Network Hubs Disabled 200 Met Zhirov 300 Cogmind --------- Core Integrity 0/1300 Matter 300/300 Energy 65/100 System Corruption 16% Temperature Cool (37) Movement Core (50) Location -3/Research Parts ------- > --- POWER (3) -------- (None) > --- PROPULSION (8) --- (None) > --- UTILITY (8) ------ (None) > --- WEAPON (3) ------- (None) > --- INVENTORY (5) ---- (None) Peak State ------------ > --- POWER ------------ Neutrino Core Reinforced Fission Core Light Particle Reactor > --- PROPULSION ------- Flexi-carbon Leg Flexi-carbon Leg Enhanced Armored Leg Myomer Leg Myomer Leg Myomer Leg Biometal Leg Biometal Leg > --- UTILITY ---------- Advanced Cryofiber Web Advanced Heat Sink Medium Storage Unit Active Sensor Suite Improved Medium Armor Plating Advanced Shield Generator > --- WEAPON ----------- Hardcell Cannon Hardcell Cannon Hardcell Cannon > --- INVENTORY -------- Fusion Compressor Cold Fusion Reactor Neutrino Core Improved VSS Leg Improved Heat Sink Kinecellerator Improved Hacking Suite Hardcell Cannon Hardcell Cannon Gamma Bomb Array [Rating: 150] Favorites ----------- Power Nuclear Core Engine Light Angular Momentum Engine Power Core Nuclear Core Reactor Cold Fusion Reactor Propulsion Flexi-carbon Leg Treads Improved Treads Leg Flexi-carbon Leg Hover Unit Gravmag Array Utility Structural Scanner Device Structural Scanner Storage Large Storage Unit Processor Transport Network Coupler Hackware System Shield Protection Improved Medium Armor Plating Weapon Cooled Plasma Cannon Energy Gun Particle Gun Energy Cannon Cooled Plasma Cannon Ballistic Gun Improved Assault Rifle Ballistic Cannon Hardcell Cannon Launcher Precision Rocket Launcher Slashing Weapon Power Sword Build | -11 -10 -9 -8 -7 -6 -5 -5 -5 -5 -5 -4 -3 ------- Run | Jun Mat Mat Mat Fac Fac Fac Ext Cet Arc Hub Fac Res Slots Evolved 15 | . 1 2 2 2 2 2 . . . . 2 2 Power 2 | . 1 . . . . . . . . . 1 . Propulsion 6 | . . 1 1 1 1 1 . . . . . 1 Utility 6 | . . 1 1 1 1 1 . . . . . 1 Weapon 1 | . . . . . . . . . . . 1 . Parts Attached 487 | 6 9 18 33 58 70 65 28 3 . 31 129 37 Power 78 | 1 3 4 5 11 6 6 7 1 . 6 18 10 Engine 19 | 1 1 1 1 5 2 . 2 1 . 5 . . Core 40 | . 2 3 4 6 4 6 5 . . 1 3 6 Reactor 19 | . . . . . . . . . . . 15 4 Propulsion 122 | 2 1 5 14 13 19 14 5 . . 11 30 8 Treads 5 | . . . . . . . . . . 2 3 . Leg 113 | 2 1 5 14 13 19 14 5 . . 9 23 8 Wheel . | . . . . . . . . . . . . . Hover 4 | . . . . . . . . . . . 4 . Flight . | . . . . . . . . . . . . . Utility 165 | 2 2 5 7 27 27 27 8 . . 7 46 7 Device 120 | . 1 3 5 19 20 23 4 . . 5 34 6 Storage 8 | . 1 . 1 . 1 2 1 . . . 2 . Processor 5 | 2 . . . . 1 . 1 . . . . 1 Hackware 3 | . . . . 1 . 1 . . . . 1 . Protection 29 | . . 2 1 7 5 1 2 . . 2 9 . Artifact . | . . . . . . . . . . . . . Weapon 122 | 1 3 4 7 7 18 18 8 2 . 7 35 12 Energy Gun 17 | . . 1 1 . 4 . . . . . 7 4 Energy Cannon 28 | . 1 1 1 2 5 6 4 . . 3 5 . Ballistic Gun 18 | 1 1 2 3 1 5 . . . . . 2 3 Ballistic Cannon 32 | . 1 . 1 1 2 7 . . . 2 15 3 Launcher 23 | . . . . 3 1 3 4 2 . 2 6 2 Special Weapon . | . . . . . . . . . . . . . Impact Weapon . | . . . . . . . . . . . . . Slashing Weapon 4 | . . . 1 . 1 2 . . . . . . Piercing Weapon . | . . . . . . . . . . . . . Special Melee Weapon . | . . . . . . . . . . . . . Unidentified Prototypes 16 | . . 2 . 2 4 4 . . . . 3 1 Corrupted Parts 5 | . . . . . . . . . . . 5 . System Corruption 9 | . . . . . . . . . . . 9 . Parts Lost 126 | . . 2 . 22 4 9 9 2 . 22 26 30 Power 23 | . . . . 6 . 2 3 1 . 3 2 6 Propulsion 36 | . . 1 . 4 . 1 3 . . 12 7 8 Utility 45 | . . . . 9 3 6 3 . . 5 11 8 Weapon 22 | . . 1 . 3 1 . . 1 . 2 6 8 Highest Loss Streak 26 | . . 1 . 5 2 4 5 2 . 12 12 26 To Critical Strikes 3 | . . . . . 1 1 . . . . 1 . Average Slot Usage (%) 91 | . 96 98 96 89 93 92 88 93 94 87 83 74 Engine 4 | . 12 4 1 8 6 3 2 4 5 5 . . Core 7 | . 10 15 14 4 6 6 6 5 5 3 4 8 Reactor 1 | . . . . . . . . . . . 9 2 Leg 31 | . 25 28 32 32 37 37 32 38 38 28 25 28 Device 17 | . 8 11 20 18 17 22 20 11 11 18 16 14 Storage 6 | . 5 10 8 7 6 5 5 5 5 4 2 3 Processor 1 | . 10 . . . . . 1 5 5 4 . . Protection 5 | . . 8 3 6 6 3 4 11 11 4 6 3 Energy Gun 1 | . . 5 2 . . . . . . . 3 . Energy Cannon 4 | . 10 4 2 3 5 3 4 . . 4 2 . Ballistic Gun 2 | . 6 7 5 2 2 . . . . . . . Ballistic Cannon 4 | . 5 2 2 4 2 6 5 . . 4 6 10 Naked Turns 65 | . . . . . . . . . . 30 4 31 Heaviest Build 144 | 7 28 38 54 76 84 134 144 142 141 141 110 107 Greatest Support 191 | 20 20 30 60 100 118 139 142 142 142 147 163 191 Greatest Overweight (x) 7 | . 1 1 1 1 . . 2 . . 7 3 1 Average Overweight (x) . | . . . . . . . . . . . . . Largest Inventory Capacity 25 | 5 10 10 15 15 15 25 25 25 25 25 10 10 Average Capacity 14 | 5 7 10 13 15 14 16 25 25 25 24 7 8 Most Carried 25 | 5 8 10 15 15 15 17 25 25 24 25 10 10 Average Carried 12 | 1 5 9 12 13 14 13 17 24 24 23 5 7 Final Capacity 25 | 5 10 10 15 15 15 25 25 25 25 5 10 5 Final Carried 25 | 2 8 10 15 13 15 16 25 24 24 5 6 . Class Distribution -------------------- 68% | Hacker-Mutant 22% | Scavenger-Mutant 3% | Scavenger-Skirmisher 3% | Hacker-Tank Dominant Class ---------------- Hacker-Mutant | -10/Materials Hacker-Mutant | -9/Materials Scavenger-Mutant | -8/Materials Hacker-Mutant | -7/Factory Hacker-Mutant | -6/Factory Hacker-Mutant | -5/Factory Hacker-Mutant | -5/Extension Scavenger-Mutant | -5/Cetus Scavenger-Mutant | -5/Archives Scavenger-Mutant | -5/Hub_04(d) Hacker-Tank | -4/Factory Scavenger-Skirmisher | -3/Research Resources | -11 -10 -9 -8 -7 -6 -5 -5 -5 -5 -5 -4 -3 ----------- Run | Jun Mat Mat Mat Fac Fac Fac Ext Cet Arc Hub Fac Res Matter Collected 13049 | 275 189 482 934 2151 1676 1678 1031 233 . 1176 2368 856 Remotely 1069 | . . . . . . . 434 . . . 635 . Salvage Created 19385 | 64 350 1188 2094 2936 3220 2271 1322 . . 1521 3035 1384 Parts 917 | 6 23 72 116 139 147 107 78 1 . 55 109 64 Haulers Intercepted 7 | . . . 1 . 2 . 3 . . . 1 . Recyclers Shooed 26 | . 1 . 1 1 9 3 . . . 1 7 3 Parts Field Recycled 47 | . . . . 25 . 22 . . . . . . Retrieved Matter 395 | . . . . 214 . 181 . . . . . . Parts Self-Destructed . | . . . . . . . . . . . . . Prevented . | . . . . . . . . . . . . . Kills | -11 -10 -9 -8 -7 -6 -5 -5 -5 -5 -5 -4 -3 ------- Run | Jun Mat Mat Mat Fac Fac Fac Ext Cet Arc Hub Fac Res Combat Hostiles Destroyed 364 | . 8 29 36 72 51 44 20 4 . 31 53 16 Melee 2 | . . . . . 1 1 . . . . . . Guns 74 | . 3 20 19 9 9 . . . . . 8 6 Cannons 236 | . 5 9 17 52 41 35 15 . . 23 31 8 AOE 40 | . . . . 10 . 7 5 4 . 4 8 2 Classes Destroyed 20 | 2 3 2 6 5 . 2 . . . . . . Worker 14 | . . . 2 4 . 1 1 . . 1 2 3 Builder 17 | . . . 1 . . 5 7 . . 1 3 . Tunneler 5 | 1 . . . 1 . . 1 . . . 2 . Hauler 7 | . . . 1 . 2 . 3 . . . 1 . Recycler 18 | 1 . . 2 3 3 2 1 . . . 3 3 Mechanic 3 | . . . . 1 . 1 . . . . 1 . Operator 12 | . . 3 1 2 2 . 1 . . 2 . 1 Watcher 38 | . 3 4 3 4 5 7 3 1 . 4 2 2 Swarmer 51 | . 2 5 . 16 10 8 3 . . . 7 . Saboteur 1 | . . . . . . 1 . . . . . . Grunt 138 | . 6 14 22 22 15 14 5 . . 16 17 7 Brawler 9 | . . . 1 3 1 1 1 . . . 2 . Duelist 6 | . . . 1 . 1 1 1 . . 2 . . Protector 3 | . . . . 1 . . . . . 1 1 . Sentry 55 | . . 10 10 9 9 4 3 . . 5 4 1 Specialist 8 | . . . . 6 . . . . . . 2 . Hunter 35 | . . . 2 2 10 7 4 . . . 8 2 Programmer 42 | . . . . 9 5 7 1 . . 4 10 6 Heavy 5 | . . . . 4 . . . . . . 1 . Behemoth 4 | . . . . . . 1 2 . . . 1 . Cetus Guard 4 | . . . . . . . . 4 . . . . Lightning 3 | . . . . . . . . . . 3 . . Best Kill Streak 18 | 1 3 5 8 7 9 18 10 5 . 6 10 16 Combat Bots Only 11 | . 2 5 7 6 9 8 5 4 . 4 8 11 Max Kills in Single Turn 5 | 1 1 2 2 2 2 3 5 2 . 2 4 5 Gunslinging . | . . . . . . . . . . . . . Exploded 3 | . . . . 2 . 2 2 2 . 2 3 2 Melee 1 | . . . . . 1 1 . . . . . . Uniques/NPCs Destroyed . | . . . . . . . . . . . . . Combat | -11 -10 -9 -8 -7 -6 -5 -5 -5 -5 -5 -4 -3 -------- Run | Jun Mat Mat Mat Fac Fac Fac Ext Cet Arc Hub Fac Res Damage Taken 25771 | . 276 703 682 4014 1697 3286 1215 489 11 2995 4975 5428 Core 3312 | . 77 63 67 410 111 202 185 . . 322 563 1312 Absorbed by Shields 5737 | . . . 286 954 1131 1007 215 . . 237 1540 367 Regen/Repaired (Parts) 1501 | . 87 249 111 312 504 238 . . . . . . Core Remaining (%) 68 | 100 69 84 87 41 86 . . . . 29 51 . Volleys Fired 1186 | 5 34 80 126 241 173 122 82 10 . 102 149 62 Largest 3 | 1 2 2 2 2 2 2 2 2 . 2 3 3 Hottest 220 | 20 99 99 93 116 155 155 155 100 . 151 220 210 Shots Fired 2195 | 5 47 154 201 358 346 243 164 15 . 201 338 123 Gun 584 | 5 33 85 148 74 115 . . . . . 88 36 Cannon 1544 | . 14 69 53 269 231 237 153 1 . 187 244 86 Launcher 67 | . . . . 15 . 6 11 14 . 14 6 1 Special . | . . . . . . . . . . . . . Kinetic 1248 | 5 34 80 120 223 170 155 81 1 . 92 193 94 Thermal 748 | . 13 74 81 120 176 82 72 . . 95 11 24 Explosive 66 | . . . . 15 . 6 11 14 . 14 6 . Electromagnetic 133 | . . . . . . . . . . . 128 5 Robot Hit Streak 37 | 5 29 30 30 31 30 19 27 13 . 37 32 19 Robot Miss Streak 4 | . 2 3 2 3 3 3 2 1 . 2 4 2 Penetration Max 3 | . . . 1 1 3 1 1 . . . 1 1 Secondary Targets 8 | . . 4 3 . 1 . . . . . . . Max Gunslinging Chain 1 | . . 1 1 . 1 . . . . . . . Shots Hit Robots 1723 | 5 40 116 162 280 267 183 133 13 . 164 268 92 Core Hits 862 | 3 18 50 71 132 114 99 64 33 . 84 138 56 Critical Kills 11 | . . . . 1 5 1 . . . 4 . . Critical Parts Destroyed 10 | . . . . . 9 . . . . . . 1 Critical Strikes 109 | . . 3 4 23 18 12 1 . . 8 32 8 Burn 6 | . . 1 3 . . . . . . . . 2 Meltdown 7 | . . . . 1 1 1 . . . 4 . . Destroy 14 | . . . . . 13 . . . . . . 1 Blast 79 | . . 2 1 22 3 11 1 . . 4 30 5 Corrupt 2 | . . . . . . . . . . . 2 . Sever 1 | . . . . . 1 . . . . . . . Melee Attacks 6 | . . . 1 . 2 3 . . . . . . Impact . | . . . . . . . . . . . . . Slashing 6 | . . . 1 . 2 3 . . . . . . Piercing . | . . . . . . . . . . . . . Sneak Attacks . | . . . . . . . . . . . . . Combat Hostiles . | . . . . . . . . . . . . . Follow-up Attacks . | . . . . . . . . . . . . . Damage Inflicted 59483 | 63 560 2028 3814 10952 7222 6953 5731 1268 . 6342 10367 4183 Guns 7818 | 63 328 1133 1997 863 1446 . . . . . 1150 838 Cannons 41886 | . 232 895 1581 8724 5656 5741 4274 37 . 5047 7153 2546 Explosions 9385 | . . . 236 1347 . 1119 1457 1231 . 1295 2064 636 Melee 167 | . . . . . 74 93 . . . . . . Ramming 227 | . . . . 18 46 . . . . . . 163 Kinetic 29995 | 63 352 1158 2443 7199 2386 3420 2110 37 . 2168 5907 2752 Thermal 18516 | . 208 870 1135 2731 4716 2482 2164 . . 2879 689 642 Explosive 7717 | . . . 236 1004 . 942 1457 1231 . 1295 1552 . Electromagnetic 2861 | . . . . . . 16 . . . . 2219 626 Impact . | . . . . . . . . . . . . . Slashing 167 | . . . . . 74 93 . . . . . . Piercing . | . . . . . . . . . . . . . Highest Corruption 16 | . . . . 6 1 3 2 2 2 8 7 16 Average Corruption 2 | . . . . 2 1 2 2 2 2 3 3 6 Corruption Purged 25 | . . . . 5 3 4 . . . . 13 . Corruption Blocked 3 | . . . . 3 . . . . . . . . Effects 155 | . . . . 42 11 17 16 3 . 23 26 17 Message Errors 35 | . . . . 12 4 3 3 . . 5 3 5 Matter Fused 34 | . . . . 8 4 3 4 1 . 5 8 1 Heat Flow Errors 20 | . . . . 5 1 3 3 . . 2 5 1 Energy Discharges 17 | . . . . 5 . 3 2 . . 3 3 1 Parts Rejected 4 | . . . . 2 . 1 1 . . . . . Parts Fused 3 | . . . . . . 1 2 . . . . . Data Loss (minor) 17 | . . . . 7 1 2 . 1 . 3 1 2 Data Loss (major) 7 | . . . . 1 . 1 . 1 . 1 2 1 Misfires 6 | . . . . 1 . . 1 . . 1 2 1 Alerts 4 | . . . . 1 1 . . . . 1 . 1 Misdirections 3 | . . . . . . . . . . . . 3 Weapon Failures 5 | . . . . . . . . . . 2 2 1 Overload Shots . | . . . . . . . . . . . . . Overflow Damage 1923 | . 5 . 41 542 130 388 131 21 . 165 319 181 Projectiles 1363 | . 5 . 41 449 130 203 74 . . 129 194 138 Explosions 529 | . . . . 93 . 185 57 21 . 36 125 12 Melee 31 | . . . . . . . . . . . . 31 Knockbacks 160 | . . 2 3 20 11 27 5 . . 24 47 21 Impact 1 | . . . . . . . . . . . . 1 Kinetic 147 | . . 2 3 17 11 24 5 . . 23 43 19 Secondary 12 | . . . . 3 . 3 . . . 1 4 1 Self-Inflicted Damage 817 | . . . . 314 . 265 . . . 101 88 49 Shots 30 | . . . . 9 . 6 . . . 6 4 5 Rammed 7 | . . . . . . . . . . . . 7 Targets Rammed 23 | . . . . 4 2 . . . . . . 17 Kicked 16 | . . . . 4 2 . . . . . . 10 Crushed . | . . . . . . . . . . . . . Highest Temperature 458 | . 240 255 380 234 250 191 250 . . 236 426 458 Average Temperature 83 | . 83 62 97 59 43 41 62 . . 22 114 164 Received Heat Transfer 5998 | . 201 474 416 956 550 534 154 9 9 815 623 1257 Effects 16 | . 2 . 7 . . . . . . . 6 1 Shutdowns 2 | . . . . . . . . . . . 2 . Energy Bleed 4 | . . . 2 . . . . . . . 1 1 Interference 9 | . 2 . 5 . . . . . . . 2 . Short Circuit 1 | . . . . . . . . . . . 1 . Siege Activations . | . . . . . . . . . . . . . Robots Corrupted 6 | . . . . . . . . . . . 6 . Combat Hostiles 6 | . . . . . . . . . . . 6 . Parts Fried 7 | . . . . . . . . . . 2 5 . Impact Corruptions 2 | . . . . . . 1 . . . . . 1 Robots Melted 7 | . . . . 1 1 1 . . . 4 . . Combat Hostiles 6 | . . . . 1 . 1 . . . 4 . . Parts Melted 46 | . 1 2 1 10 14 7 3 . . 4 . 4 Heat Transferred 30220 | . 444 2072 2701 4596 7600 3401 3200 . . 4175 620 1411 Parts Sabotaged . | . . . . . . . . . . . . . Parts Stolen . | . . . . . . . . . . . . . Parts Stripped . | . . . . . . . . . . . . . Power Chain Reactions 2 | . . . . . . . . . . . 1 1 Missiles Intercepted . | . . . . . . . . . . . . . Alert | -11 -10 -9 -8 -7 -6 -5 -5 -5 -5 -5 -4 -3 ------- Run | Jun Mat Mat Mat Fac Fac Fac Ext Cet Arc Hub Fac Res Peak Influence 830 | 10 238 302 396 294 256 830 308 172 78 630 611 267 Initial 66 | . 4 23 18 13 46 66 . 53 48 18 45 5 Average 148 | 3 40 64 147 107 100 423 86 137 51 289 242 66 Maximum Alert Level 3 | . 1 1 1 1 1 3 1 . . 2 2 1 Low Security (%) 75 | 100 96 91 67 87 88 19 93 100 100 36 46 99 Level 1 15 | . 3 8 32 12 11 20 6 . . 28 34 . Level 2 8 | . . . . . . 47 . . . 35 19 . Level 3 1 | . . . . . . 11 . . . . . . Level 4 . | . . . . . . . . . . . . . Level 5 . | . . . . . . . . . . . . . High Security . | . . . . . . . . . . . . . Max Security . | . . . . . . . . . . . . . Squads Dispatched 101 | . 2 5 6 24 14 12 3 . . 10 18 7 Investigation 41 | . 2 4 5 6 7 6 1 . . 6 3 1 Extermination 24 | . . . . 7 5 3 . . . 2 5 2 Reinforcement 29 | . . 1 1 11 2 2 2 . . 1 6 3 Assault 3 | . . . . . . 1 . . . 1 1 . Garrison 4 | . . . . . . . . . . . 3 1 Intercept . | . . . . . . . . . . . . . Searches Triggered . | . . . . . . . . . . . . . Construction Impeded 7 | . . . . . . . 1 . . . 3 3 Haulers Reinforced 1 | . . . . . 1 . . . . . . . Active Scanning Responses 1 | . . . . . . . . . . . . 1 Cargo Convoy Interrupts 2 | . . . . 1 . 1 . . . . . . Stealth | -11 -10 -9 -8 -7 -6 -5 -5 -5 -5 -5 -4 -3 --------- Run | Jun Mat Mat Mat Fac Fac Fac Ext Cet Arc Hub Fac Res Distress Signals 14 | . . 4 2 . . 1 3 1 . 2 1 . Communications Jammed . | . . . . . . . . . . . . . Distress Signals . | . . . . . . . . . . . . . Times Spotted 531 | . 12 46 48 90 63 67 28 10 5 55 70 37 Peak Tracking Total 15 | . 2 6 8 5 6 12 5 5 6 11 11 15 Tactical Retreats 23 | . . 1 2 2 6 2 . 1 1 5 1 2 Traps | -11 -10 -9 -8 -7 -6 -5 -5 -5 -5 -5 -4 -3 ------- Run | Jun Mat Mat Mat Fac Fac Fac Ext Cet Arc Hub Fac Res Traps Triggered 18 | . 2 . 3 2 8 2 . . . . . 1 Indirectly . | . . . . . . . . . . . . . Trap Hack Attempts . | . . . . . . . . . . . . . Triggered . | . . . . . . . . . . . . . Disarmed . | . . . . . . . . . . . . . Reprogrammed 19 | . 10 1 1 . 6 1 . . . . . . Reused 4 | . 3 . 1 . . . . . . . . . Traps Extracted . | . . . . . . . . . . . . . Installed . | . . . . . . . . . . . . . Triggered 6 | . 3 . 1 1 . . . . . . 1 . Machines | -11 -10 -9 -8 -7 -6 -5 -5 -5 -5 -5 -4 -3 ---------- Run | Jun Mat Mat Mat Fac Fac Fac Ext Cet Arc Hub Fac Res Machines Disabled 57 | . . 1 3 11 4 15 1 . . 9 12 1 Max in Single Turn 7 | . . 1 1 5 2 7 1 . . 2 4 1 Garrison Access 5 | . . . 1 1 1 . . . . . 1 1 Network Hub 1 | . . . . . . . . . . 1 . . Machines Repaired . | . . . . . . . . . . . . . Machines Sabotaged . | . . . . . . . . . . . . . Overloaded Fab Kills . | . . . . . . . . . . . . . Hacking | -11 -10 -9 -8 -7 -6 -5 -5 -5 -5 -5 -4 -3 --------- Run | Jun Mat Mat Mat Fac Fac Fac Ext Cet Arc Hub Fac Res Machines Accessed 121 | . 11 16 15 22 23 12 3 1 . 7 8 3 Terminals 69 | . 8 10 9 9 11 7 3 1 . 7 3 1 Fabricators 8 | . . . . 3 2 3 . . . . . . Repair Stations 11 | . 1 2 1 2 3 2 . . . . . . Recycling Units 17 | . 2 2 2 5 4 . . . . . 2 . Scanalyzers 11 | . . 2 2 2 2 . . . . . 2 1 Garrison Access 5 | . . . 1 1 1 . . . . . 1 1 Total Hacks 421 | . 36 67 49 57 60 51 6 1 . 43 36 15 Successful 291 | . 28 47 37 38 44 31 3 1 . 26 26 10 Failed 130 | . 8 20 12 19 16 20 3 . . 17 10 5 Catastrophic 9 | . . 1 1 . 1 . . . . 4 1 1 Database Lockouts . | . . . . . . . . . . . . . Manual 139 | . 18 29 21 13 17 17 3 1 . 13 6 1 Terminals 267 | . 28 46 29 25 34 35 6 1 . 43 14 6 Fabricators 29 | . . . . 13 7 9 . . . . . . Repair Stations 35 | . 4 10 2 5 7 7 . . . . . . Recycling Units 26 | . 4 2 3 6 4 . . . . . 7 . Scanalyzers 53 | . . 9 14 5 6 . . . . . 11 8 Garrison Access 11 | . . . 1 3 2 . . . . . 4 1 Terminal Hacks 105 | . 12 18 9 6 13 17 2 1 . 19 6 2 Record 9 | . 1 1 . 1 1 5 . . . . . . Part Schematic 8 | . . . . 2 1 1 . . . 3 1 . Robot Analysis 3 | . 1 1 . . . . . . . 1 . . Prototype ID Bank 4 | . . . . . . 2 . . . 1 . 1 Open Door 4 | . . . . . . 1 2 1 . . . . Open DSF 4 | . . . . 2 2 . . . . . . . Level Access Points 2 | . . . . . . 1 . . . . 1 . Branch Access Points 4 | . 1 1 . . 1 1 . . . . . . Emergency Access Points 4 | . . 1 1 . . . . . . 2 . . Terminal Index 1 | . . . . . . . . . . . . 1 Unreport Threat 17 | . 1 5 2 . 2 2 . . . 4 1 . Reprogram Traps 7 | . 3 1 1 . 1 1 . . . . . . Dispatch Records 3 | . 2 1 . . . . . . . . . . Maintenance Status 2 | . 1 1 . . . . . . . . . . Surveillance Status 2 | . 1 . . . 1 . . . . . . . Patrol Status 1 | . . 1 . . . . . . . . . . Transport Status 1 | . . . 1 . . . . . . . . . Recall Investigation 6 | . . 1 1 . 1 . . . . 2 1 . Recall Extermination 1 | . . . . . . . . . . . 1 . Recall Reinforcements 2 | . . . . . . 1 . . . 1 . . Recall Assault 1 | . . . . . . . . . . 1 . . Hauler Manifests 2 | . . 1 . . 1 . . . . . . . Zone Layout 17 | . 1 3 3 1 2 2 . . . 4 1 . Fabricator Hacks 21 | . . . . 12 6 3 . . . . . . Network Status 6 | . . . . 3 2 1 . . . . . . Load Schematic 7 | . . . . 5 2 . . . . . . . Build 8 | . . . . 4 2 2 . . . . . . Repair Station Hacks 32 | . 4 10 2 4 6 6 . . . . . . Scan Component 16 | . 2 5 1 2 3 3 . . . . . . Repair 16 | . 2 5 1 2 3 3 . . . . . . Recycling Unit Hacks 24 | . 4 2 2 6 4 . . . . . 6 . Process 1 | . . . . . . . . . . . 1 . Report Inventory 18 | . 2 2 2 6 4 . . . . . 2 . Retrieve Matter 2 | . 1 . . . . . . . . . 1 . Retrieve Components 3 | . 1 . . . . . . . . . 2 . Scanalyzer 43 | . . 8 14 2 4 . . . . . 9 6 Insert Component 22 | . . 4 6 2 2 . . . . . 5 3 Analyze 21 | . . 4 8 . 2 . . . . . 4 3 Garrison Access Hacks 7 | . . . 1 1 2 . . . . . 2 1 Unlock Access 2 | . . . . . 1 . . . . . 1 . Seal Access 5 | . . . 1 1 1 . . . . . 1 1 Unauthorized Hacks 59 | . 8 9 9 7 9 5 1 . . 7 3 1 Terminals 59 | . 8 9 9 7 9 5 1 . . 7 3 1 Botnet 59 | . 8 9 9 7 9 5 1 . . 7 3 1 Fabricators . | . . . . . . . . . . . . . Repair Stations . | . . . . . . . . . . . . . Recycling Units . | . . . . . . . . . . . . . Scanalyzers . | . . . . . . . . . . . . . Garrison Access . | . . . . . . . . . . . . . Data Cores Recovered 4 | . . 1 1 . 1 . . . . . . 1 Used 1 | . . . . . . . . . . . . 1 Hacking Detections 106 | . 10 14 12 20 19 11 2 1 . 7 8 2 Full Trace Events 45 | . 4 6 6 6 7 6 1 . . 6 3 . Feedback Events 1 | . . . . . . . . . . . 1 . Corruption 1 | . . . . . . . . . . . 1 . Feedback Blocked . | . . . . . . . . . . . . . Robot Schematics Acquired . | . . . . . . . . . . . . . Robots Built 2 | . . . . . . 2 . . . . . . Authchips . | . . . . . . . . . . . . . Time 76 | . . . . . . 76 . . . . . . Total Robot Build Rating 10 | . . . . . . 10 . . . . . . Part Schematics Acquired 23 | . . 3 5 2 2 1 . . . 3 5 2 Parts Built 11 | . . . . 7 4 . . . . . . . Authchips . | . . . . . . . . . . . . . Time 377 | . . . . 235 89 53 . . . . . . Total Part Build Rating 43 | . . . . 25 18 . . . . . . . Parts Repaired 16 | . 2 5 1 2 3 3 . . . . . . Time 457 | . 64 142 32 31 84 104 . . . . . . Parts Recycled . | . . . . . . . . . . . . . Recycled Matter 204 | . . . . . . . . . . . 204 . Retrieved Matter 604 | . . . . . . . . . . . 604 . Retrieved Components 20 | . 8 . . . . . . . . . 12 . Parts Scanalyzed 21 | . . 4 6 1 2 . . . . . 5 3 Part Schematics Acquired 15 | . . 3 5 . 1 . . . . . 4 2 Parts Damaged 2 | . . . 1 . . . . . . . 1 . Bothacking | -11 -10 -9 -8 -7 -6 -5 -5 -5 -5 -5 -4 -3 ------------ Run | Jun Mat Mat Mat Fac Fac Fac Ext Cet Arc Hub Fac Res Used RIF Installer . | . . . . . . . . . . . . . Robots Hacked . | . . . . . . . . . . . . . Non-combat . | . . . . . . . . . . . . . Combat . | . . . . . . . . . . . . . Robot Hacks Applied . | . . . . . . . . . . . . . Relay Couplers Released . | . . . . . . . . . . . . . Fabnet Peak Effective % . | . . . . . . . . . . . . . Robots Rewired . | . . . . . . . . . . . . . Allies Hacked . | . . . . . . . . . . . . . Hacks Repelled . | . . . . . . . . . . . . . Allies | -11 -10 -9 -8 -7 -6 -5 -5 -5 -5 -5 -4 -3 -------- Run | Jun Mat Mat Mat Fac Fac Fac Ext Cet Arc Hub Fac Res Total Allies 4 | . . . . . . 2 2 . . . . . Largest Group 2 | . . . . . . 2 2 1 . . . . Highest-Rated Group 62 | . . . . . . 28 62 31 . . . . Highest-Rated Ally 31 | . . . . . . 14 31 31 . . . . Total Orders . | . . . . . . . . . . . . . Ally Attacks 25 | . . . . . . 2 14 9 . . . . Total Damage 348 | . . . . . . . 266 82 . . . . Kills 1 | . . . . . . . 1 . . . . . Allies Corrupted . | . . . . . . . . . . . . . Allies Melted . | . . . . . . . . . . . . . Intel | -11 -10 -9 -8 -7 -6 -5 -5 -5 -5 -5 -4 -3 ------- Run | Jun Mat Mat Mat Fac Fac Fac Ext Cet Arc Hub Fac Res Robot Analysis Total 3 | . 1 1 . . . . . . . 1 . . Derelict Logs Recovered . | . . . . . . . . . . . . . Drone Launches . | . . . . . . . . . . . . . Drone Recoveries . | . . . . . . . . . . . . . Exploration | -11 -10 -9 -8 -7 -6 -5 -5 -5 -5 -5 -4 -3 ------------- Run | Jun Mat Mat Mat Fac Fac Fac Ext Cet Arc Hub Fac Res Turns Passed 22306 | 68 1389 2772 1700 4474 3830 2053 1596 192 61 1126 2228 817 Spaces Moved 12681 | 46 790 1225 1002 2689 2519 1288 813 127 52 499 1196 435 Core 144 | 14 . . . . . . . . . 53 11 66 Treads 26 | . . . . . . . . . . . 26 . Legs 12318 | 32 790 1225 1002 2689 2519 1288 813 127 52 446 966 369 Wheels . | . . . . . . . . . . . . . Hover 193 | . . . . . . . . . . . 193 . Flight . | . . . . . . . . . . . . . Fastest Speed 48 | 50 120 120 120 120 115 102 108 110 110 50 48 50 Average Speed 132 | 98 147 187 120 133 117 108 158 110 110 148 120 108 Slowest Speed 610 | 120 190 190 190 195 121 120 258 110 110 610 330 120 Overloaded Moves . | . . . . . . . . . . . . . Propulsion Burnouts . | . . . . . . . . . . . . . Robots Hopped . | . . . . . . . . . . . . . Cave-ins Triggered . | . . . . . . . . . . . . . Exploration Rate (%) 59 | 4 100 99 99 68 64 40 74 65 67 49 23 15 Regions Visited 12 Branch Regions 4 Pre-discovered Areas . | . . . . . . . . . . . . . Known Exits Taken 12 | 1 1 1 1 1 1 1 1 1 1 1 1 . Unknown Exits Taken . | . . . . . . . . . . . . . Scrap Searched . | . . . . . . . . . . . . . Spaces Dug 54 | . . . 1 1 1 . 32 . . 18 . 1 Terrain Destroyed 823 | . . 1 23 212 37 99 154 87 . 102 89 19 Melee 1 | . . . 1 . . . . . . . . . Projectile 179 | . . 1 9 30 24 25 27 . . 14 32 17 AOE 643 | . . . 13 182 13 74 127 87 . 88 57 2 Terrain Rammed . | . . . . . . . . . . . . . Walls Destroyed . | . . . . . . . . . . . . . Machines Disabled . | . . . . . . . . . . . . . Actions | -11 -10 -9 -8 -7 -6 -5 -5 -5 -5 -5 -4 -3 --------- Run | Jun Mat Mat Mat Fac Fac Fac Ext Cet Arc Hub Fac Res Total 15978 | 62 968 1550 1302 3163 3053 1689 947 162 55 671 1682 674 Wait 1034 | . 115 190 86 84 179 164 . 20 4 24 73 95 Move 12669 | 45 789 1224 1001 2688 2518 1287 812 126 51 498 1195 435 Hop . | . . . . . . . . . . . . . Pick Up 322 | 6 14 21 25 53 55 26 20 2 . 9 72 19 Fast Attach 60 | 2 3 2 10 1 6 5 . . . 6 22 3 Attach 194 | 4 4 6 2 35 14 19 13 2 . 10 66 19 Detach 26 | . . . 1 1 1 3 2 . . . 16 2 Swap 235 | . 2 11 21 23 50 41 15 1 . 15 41 15 Drop 219 | . 7 16 29 28 53 20 3 1 . 7 48 7 Fire 1186 | 5 34 80 126 241 173 122 82 10 . 102 149 62 Melee 5 | . . . 1 . 2 2 . . . . . . Ram 7 | . . . . . . . . . . . . 7 Kick 16 | . . . . 4 2 . . . . . . 10 Crush . | . . . . . . . . . . . . . Escape Stasis 5 | . . . . 5 . . . . . . . . Rewire . | . . . . . . . . . . . . . Trap . | . . . . . . . . . . . . . Miscellaneous . | . . . . . . . . . . . . . Route ------- -11/Junkyard -10/Materials (discovered 5 exits: *Mat x3 / *Min x2) -9/Materials (discovered 5 exits: *Mat x3 / *Min x2) -8/Materials (discovered 3 exits: *Fac x3) -7/Factory (discovered 5 exits: *Fac x4 / *Low) -6/Factory (discovered 5 exits: *Fac x3 / *Low x2) -5/Factory (discovered 8 exits: Fac x4 / Upp x2 / *Ext x2) -5/Extension (discovered 3 exits: *Fac x2 / *Cet) -5/Cetus -5/Archives (discovered 2 exits: *Hub x2) -5/Hub_04(d) (discovered 3 exits: *Fac x3) -4/Factory (discovered 4 exits: *Res x4) -3/Research History --------- Turn | Location | Event 26 | -11/Junkyard | Identified exit to Materials 26 | -11/Junkyard | Discovered exit to Materials (range 12) 69 | -11/Junkyard | Entered Materials 69 | -10/Materials | Evolved 1 slot: Power x1 306 | -10/Materials | Build established: Hacker-Mutant 406 | -10/Materials | Identified exit to Materials 406 | -10/Materials | Discovered exit to Materials (range 5) 494 | -10/Materials | Identified exit to Mines 494 | -10/Materials | Discovered exit to Mines (range 10) 552 | -10/Materials | Discovered exit to Mines (range 16) 763 | -10/Materials | Repaired Assault Rifle 802 | -10/Materials | Repaired Lgt. Nuclear Core 1186 | -10/Materials | Discovered exit to Materials (range 3) 1448 | -10/Materials | Discovered exit to Materials (range 6) 1458 | -10/Materials | Entered another Materials area 1458 | -9/Materials | Evolved 2 slots: Propulsion x1, Utility x1 1622 | -9/Materials | Identified exit to Mines 1622 | -9/Materials | Discovered exit to Mines (range 15) 1909 | -9/Materials | Discovered exit to Mines (range 16) 1973 | -9/Materials | Repaired Ion Engine 2001 | -9/Materials | Repaired Lgt. Armor Plating 2034 | -9/Materials | Repaired Med. Armor Plating 3071 | -9/Materials | Identified exit to Materials 3071 | -9/Materials | Discovered exit to Materials (range 8) 3578 | -9/Materials | Discovered exit to Materials (range 7) 3766 | -9/Materials | Discovered exit to Materials (range 11) 4011 | -9/Materials | Repaired Med. Armor Plating 4038 | -9/Materials | Repaired Heat Sink 4230 | -9/Materials | Entered another Materials area 4230 | -8/Materials | Evolved 2 slots: Propulsion x1, Utility x1 4429 | -8/Materials | Destroyed 7 combat bots 4768 | -8/Materials | Identified exit to Factory 4768 | -8/Materials | Discovered exit to Factory (range 16) 5131 | -8/Materials | Repaired Med. Armor Plating 5174 | -8/Materials | Build established: Scavenger-Mutant 5353 | -8/Materials | Discovered exit to Factory (range 15) 5635 | -8/Materials | Discovered exit to Factory (range 10) 5930 | -8/Materials | Entered Factory 5930 | -7/Factory | Evolved 2 slots: Propulsion x1, Utility x1 6299 | -7/Factory | Build established: Hacker-Mutant 6512 | -7/Factory | Fabricated System Shield? 6890 | -7/Factory | Identified exit to Factory 6890 | -7/Factory | Discovered exit to Factory (range 8) 7382 | -7/Factory | Cargo convoy interrupted 7515 | -7/Factory | Repaired Carbon-fiber Leg 8184 | -7/Factory | Lost 5 parts (1p2n2u) 8781 | -7/Factory | Discovered exit to Factory (range 16) 8800 | -7/Factory | Lost 4 parts (1p1n1u1w) 9291 | -7/Factory | Identified exit to Lower Caves 9291 | -7/Factory | Discovered exit to Lower Caves (range 15) 9657 | -7/Factory | Repaired Hrd. Medium Armor Plating 9872 | -7/Factory | Core integrity fell below 50% 9891 | -7/Factory | Build established: Scavenger-Mutant 9896 | -7/Factory | Fabricated Imp. Shield Generator? 10029 | -7/Factory | Fabricated Nuclear Core? 10188 | -7/Factory | Discovered exit to Factory (range 16) 10332 | -7/Factory | Fabricated Imp. Shield Generator? 10374 | -7/Factory | Discovered exit to Factory (range 4) 10404 | -7/Factory | Entered another Factory area 10404 | -6/Factory | Evolved 2 slots: Propulsion x1, Utility x1 11258 | -6/Factory | Destroyed 9 combat bots 11421 | -6/Factory | Identified exit to Factory 11421 | -6/Factory | Discovered exit to Factory (range 15) 11636 | -6/Factory | Identified exit to Lower Caves 11697 | -6/Factory | Build established: Hacker-Mutant 11859 | -6/Factory | Repaired Lrg. Storage Unit 12106 | -6/Factory | Discovered exit to Factory (range 4) 13211 | -6/Factory | Identified exit to Garrison 13582 | -6/Factory | Repaired Imp. Heavy Armor Plating 13610 | -6/Factory | Repaired Structural Scanner 13775 | -6/Factory | Fabricated Power Sword? 13888 | -6/Factory | Fabricated Imp. Shield Generator? 14213 | -6/Factory | Discovered exit to Factory (range 15) 14234 | -6/Factory | Entered another Factory area 14234 | -5/Factory | Evolved 2 slots: Propulsion x1, Utility x1 14450 | -5/Factory | Fabricated E-15 Imp? 14536 | -5/Factory | Repaired Flexi-carbon Leg 14767 | -5/Factory | Identified exit to Upper Caves 14767 | -5/Factory | Identified exit to Extension 14767 | -5/Factory | Identified exit to Factory 15067 | -5/Factory | Destroyed 7 combat bots 15082 | -5/Factory | Cargo convoy interrupted 15134 | -5/Factory | First assault squad dispatched 15180 | -5/Factory | Lost 4 parts (1p3u) 15185 | -5/Factory | Destroyed 8 combat bots 15718 | -5/Factory | Found Prototype Launcher 15785 | -5/Factory | Repaired Imp. Cooling System 15831 | -5/Factory | Repaired Imp. Shield Generator 15835 | -5/Factory | Identified Tesla Bomb Launcher 16132 | -5/Factory | Spotted B-75 Beast 16146 | -5/Factory | Destroyed B-75 Beast 16287 | -5/Factory | Entered Extension 16373 | -5/Extension | Spotted B-75 Beast 16386 | -5/Extension | Destroyed B-75 Beast 16419 | -5/Extension | Spotted B-75 Beast 16447 | -5/Extension | Destroyed B-75 Beast 16476 | -5/Extension | Lost 5 parts (1p3n1u) 16580 | -5/Extension | Discovered exit to Factory (range 3) 16753 | -5/Extension | Lost 3 parts (1p2u) 17012 | -5/Extension | Disrupted transfer network 17279 | -5/Extension | Identified exit to Cetus 17279 | -5/Extension | Discovered exit to Cetus (range 16) 17280 | -5/Extension | Discovered exit to Factory (range 15) 17391 | -5/Extension | Rescued a captive Derelict 17392 | -5/Extension | Rescued a captive Derelict 17491 | -5/Extension | Build established: Scavenger-Mutant 17883 | -5/Extension | Entered Cetus 17883 | -5/Cetus | Accompanied by 1 ally 17899 | -5/Cetus | Spotted Cetus Guard 17899 | -5/Cetus | Spotted Cetus Guard 17901 | -5/Cetus | Spotted Cetus Guard 17901 | -5/Cetus | Spotted Cetus Guard 17917 | -5/Cetus | Destroyed Cetus Guard 17917 | -5/Cetus | Destroyed Cetus Guard 17924 | -5/Cetus | Destroyed Cetus Guard 17927 | -5/Cetus | Destroyed Cetus Guard 18058 | -5/Cetus | Identified exit to Archives 18058 | -5/Cetus | Discovered exit to Archives (range 16) 18075 | -5/Cetus | Entered Archives 18100 | -5/Archives | Met Zhirov 18106 | -5/Archives | Reinforcements dispatched to Archives 18107 | -5/Archives | Identified exit to Hub_04(d) 18107 | -5/Archives | Discovered exit to Hub_04(d) (range 15) 18119 | -5/Archives | Discovered exit to Hub_04(d) (range 15) 18136 | -5/Archives | Entered Hub_04(d) 18405 | -5/Hub_04(d) | Network Hub disabled 18617 | -5/Hub_04(d) | Spotted Lightning 18620 | -5/Hub_04(d) | Spotted Lightning 18620 | -5/Hub_04(d) | Spotted Lightning 18646 | -5/Hub_04(d) | Destroyed Lightning 18646 | -5/Hub_04(d) | Destroyed Lightning 18649 | -5/Hub_04(d) | Destroyed Lightning 18736 | -5/Hub_04(d) | First assault squad dispatched 18951 | -5/Hub_04(d) | Discovered exit to Factory (range 16) 18998 | -5/Hub_04(d) | Core integrity fell below 50% 18998 | -5/Hub_04(d) | Discovered exit to Factory (range 11) 19133 | -5/Hub_04(d) | Discovered exit to Factory (range 15) 19144 | -5/Hub_04(d) | Spotted Lightning 19145 | -5/Hub_04(d) | Spotted Lightning 19148 | -5/Hub_04(d) | Spotted Lightning 19232 | -5/Hub_04(d) | Released all parts (9) 19256 | -5/Hub_04(d) | Lost 12 parts (2p7n2u1w) 19262 | -5/Hub_04(d) | Entered Factory 19262 | -4/Factory | Evolved 2 slots: Power x1, Weapon x1 19773 | -4/Factory | Build established: Hacker-Mutant 20047 | -4/Factory | First assault squad dispatched 20097 | -4/Factory | Garrison activated, responded to threat 20200 | -4/Factory | Destroyed 8 combat bots 20206 | -4/Factory | Lost 6 parts (4u2w) 20331 | -4/Factory | Identified exit to Garrison 20393 | -4/Factory | Spotted B-86 Titan 20478 | -4/Factory | Destroyed B-86 Titan 20496 | -4/Factory | Lost 12 parts (1p6n4u1w) 20647 | -4/Factory | Lost 3 parts (1p1u1w) 20647 | -4/Factory | Identified exit to Research 20889 | -4/Factory | Found Corrupted Prototype Device 21117 | -4/Factory | Build established: Scavenger-Tank 21200 | -4/Factory | Identified Active Sensor Suite 21490 | -4/Factory | Entered Research 21490 | -3/Research | Evolved 2 slots: Propulsion x1, Utility x1 21508 | -3/Research | Build established: Scavenger-Skirmisher 21590 | -3/Research | Garrison activated, responded to threat 21703 | -3/Research | Found Unknown Launcher 21704 | -3/Research | Identified Gamma Bomb Array 22018 | -3/Research | Spotted B-86 Titan 22153 | -3/Research | System corruption reached 10% 22218 | -3/Research | Lost 26 parts (5p8n7u6w) 22228 | -3/Research | Destroyed 11 combat bots 22266 | -3/Research | Released all parts (7) 22268 | -3/Research | Core integrity fell below 50% 22295 | -3/Research | Core integrity fell below 20% 22307 | -3/Research | Destroyed by G-67 Veteran with Plasma Rifle Last Messages --------------- 22289_ Reaction Chamber disabled. 22291_ P-80 Master suffers critical hit (Burn). 22293_ K-01 Serf collects debris. 22293_ Slug penetrates Reaction Chamber. 22294_ Wave Gun destroyed. 22294_ Slug penetrates Wall. 22294_ Penetrated by Slug. 22296_ INPGIWHT QNEZ6F&Q,V,O:2Z 22296_ Slug penetrates Reaction Chamber. 22297_ K-01 Serf collects debris. 22297_ Slammed into G-67 Veteran. 22301_ Slug penetrates A-15 Conveyor. 22301_ Penetrated by Slug. 22301_ Slug penetrates Wall. 22301_ Slammed into U-05 Engineer. 22302_ ALERT: Construction progress impeded, dispatching reinforcements to local area. 22302_ K-01 Serf collects debris. 22303_ P-80 Master resets A-15 Conveyor, system corruption cleaned. 22307_ Critical hit (Burn: +50). Map ----- +----------------------------------------------------+ | ?????????????????????????????????????????????????? | | ?????????????????????????????????????????????????? | | ?????????????????????????????????????????????????? | | ?????????????????????????????????????????????????? | | ?????????????????????????????????????????????????? | | ?????????????????????????????????????????????????? | | ?????????????????????????????????????????????????? | | ?????????????????????????????????????????????????? | | ?????????????????????????????????????????????????? | | ????????????????????????????????????????????? ?? | | ????????????????????????????????????????????? ? | | ?????????????????????? ?????????????????????" ? | | ?????????????????????? ??????????????? ?? ? | | ?????????????????????? ??##########?? ? ? | | ???????????????#+#####/??# #??# ? #? | | ???????????????# ??# *#??# """ "" | | ???????????????# ??# #?"" """ "" | | ???????????????# !! ???# ##"" """ T" | | ???????????????# != ???# ##"" "" | | ???????????????# ???# ##T "? | | ???????????????# ???# ?#"" ## | | ???????????????? = ???# ???#"" """ ## | | ?????????????????? ???# ?????#"" """ ## | | ????????????????####R######+########## """= ## | | ????????????????# # | | ????????????????# A @ # | | ???????########## A % g # | | ???????# # uu + | | ???????# #p g ######################## # | | ???????# """ # gg # """"?????############ # | | ???????# """ #g # ""S""" ??# # # | | ???????# " hp + """ ??# % % # | | ??? # # # # ""G"" # | | ??# # # # # " " # | | ??# #! # #? = # " " %/ | | ??# # # #?? # ! %# | | ??# #######/## % #???######### # | | ??# ## """ # #????????############### % " | | ??# ## """ # #????????# % " | | ??# ## """ # #????????# = " | | ??# ## *# #????????# !%= | | ??# ## # #????????# *! % | | ??# ##! # ######################## | | ??#^ ## ? # # ! # # % " | | ### ######+### # # #% " | | [%![[%*% + # " """"" # " | | %%*[=%=%!! # ! *# """"""" / | | %[%!=!| #= # """"""" # | | %%%%=!==**!% # """ # # | | #############/######## """ # ###### | +----------------------------------------------------+ Best States ------------- Heat Dissipation 98 Energy Generation 67 Energy Capacity 740 Matter Stores 300 Matter Capacity 300 Sight Range 16 Robot Scan Range 20 Terrain Scan Density 10 Power Amplification 30 Additional Mass Support 12 Base Temperature (-) 200 EM Shielding 3 Armor Coverage 825 Resistance: KI 35 Resistance: TH 60 Resistance: EX 35 Resistance: EM 50 Resistance: I 35 Resistance: S 35 Resistance: P 35 Phase Shifting 5 Evasion (%) 60 Targeting Accuracy 10 Target Analysis 8 Recoil Reduction 2 Matter Filtering 30 Kinecelleration 30 Offensive Hacking 30 Defensive Hacking 10 Item Schematics ----------------- Nuclear Core | -9/Materials | Scanalyzed Hardlight Generator | -9/Materials | Scanalyzed Med. Armor Plating | -9/Materials | Scanalyzed Mni. Grenade Launcher | -8/Materials | Scanalyzed Imp. Shield Generator | -8/Materials | Scanalyzed Structural Scanner | -8/Materials | Scanalyzed System Shield | -8/Materials | Scanalyzed Adv. Targeting Computer | -8/Materials | Scanalyzed Imp. Carbon-fiber Leg | -7/Factory | Hacked Cld. Plasma Rifle | -7/Factory | Hacked Power Sword | -6/Factory | Scanalyzed Lgt. Antimatter Reactor | -6/Factory | Hacked Imp. Recalibrator | -5/Factory | Hacked Neutrino Core | -5/Hub_04(d) | Hacked Quantum Capacitor | -5/Hub_04(d) | Hacked Lance | -5/Hub_04(d) | Hacked Adv. Cooling System | -4/Factory | Scanalyzed Myomer Leg | -4/Factory | Scanalyzed Biometal Medium Treads | -4/Factory | Hacked Cold Fusion Reactor | -4/Factory | Scanalyzed Adv. Cryofiber Web | -4/Factory | Scanalyzed Biometal Leg | -3/Research | Scanalyzed Hardcell Cannon | -3/Research | Scanalyzed Robot Schematics ------------------ None Fabricated ------------ System Shield | x1 | -7/Factory Imp. Shield Generator | x2 | -7/Factory Nuclear Core | x2 | -7/Factory Imp. Shield Generator | x2 | -7/Factory Power Sword | x2 | -6/Factory Imp. Shield Generator | x2 | -6/Factory E-15 Imp | x2 | -5/Factory | Preloaded Alien Tech Used ----------------- None Achievements -------------- Streaker Challenges ------------ None Game ------ Seed AnalysisInsulatedSteel Manual? 0 Play Time 06:09:39 Cumulative 169.0 hours Start 2023.09.16 @ 02:18:16 End 2023.09.27 @ 22:49:04 Sessions 17 Manual Loads 0 Difficulty Explorer Special Mode None Game No. 130 Rogue 0 Adventurer 102 Explorer 28 Win Type - Total 0 Types 0/0/0/0/0/0/0/0/0 Lore% 46 Gallery% 59 Achievement% 46 Wizard Run 0 Options --------- ASCII 0 Keyboard 0 Movement Mouse Keybinds 0 Fullscreen 1 Font 24/Smallcaps Map View 76x50 Tactical HUD 1 Map Filters NONE Filters NONE Steam 1 RUN: 2ca61a40-b88f-4551-b115-485fb608dd64